bitfinex/quotes_SOLUSD_20251124
["timestamp","ask_amount","ask_price","bid_price","bid_amount"]
[1763986363472,2.76375732,129.24,129.22,4.12]
[1763986363673,2.76375732,129.24,129.22,3.44]
[1763986363842,2.76375732,129.25,129.23,0.68]
[1763986364381,2.76375732,129.28,129.23,3.44375732]
[1763986364569,2.76375732,129.28,129.23,34.84375732]
[1763986364772,0.72,129.33,129.25,9.78882769]
[1763986364949,9.90431313,129.36,129.26,6.20375732]
[1763986364950,2.76375732,129.31,129.26,6.20375732]
[1763986365146,2.76375732,129.3,129.26,4.12]
[1763986365447,2.76375732,129.29,129.26,4.12]
[1763986365863,2.76375732,129.28,129.27,0.67]
[1763986366279,2.76375732,129.3,129.27,0.67]
[1763986366480,2.76375732,129.29,129.27,0.67]
[1763986366695,2.76375732,129.3,129.27,0.67]
[1763986366883,2.76375732,129.31,129.27,0.67]
[1763986367083,2.76375732,129.3,129.27,0.67]
[1763986367458,2.76375732,129.29,129.28,3.44]
[1763986367899,2.76375732,129.29,129.28,4.11]
[1763986368977,2.76375732,129.3,129.28,4.11]
[1763986369582,0.72,129.31,129.28,4.11]
[1763986369779,2.76375732,129.3,129.28,4.11]
[1763986370100,2.76375732,129.3,129.28,35.51]
[1763986370297,0.72,129.31,129.29,0.67]
[1763986370298,2.76375732,129.31,129.29,0.67]
[1763986370503,2.76375732,129.32,129.29,0.67]
[1763986370714,2.76375732,129.33,129.29,0.67]
[1763986371009,2.76375732,129.32,129.29,0.67]
[1763986371391,18.12096,129.33,129.29,0.67]
[1763986371392,2.76375732,129.33,129.29,0.67]
[1763986371703,20.88471732,129.33,129.29,3.43375732]
[1763986372113,20.88471732,129.33,129.3,0.67]
[1763986372290,20.88471732,129.33,129.31,3.44]
[1763986372600,2.76375732,129.32,129.31,3.44]
[1763986374297,2.76375732,129.32,129.3,0.72]
[1763986374505,2.76375732,129.31,129.3,0.72]
[1763986374681,20.88471732,129.31,129.27,0.14216157]
[1763986374882,20.88471732,129.31,129.28,4.16]
[1763986375300,2.76375732,129.31,129.29,0.72]
[1763986375701,18.81096,129.33,129.29,0.72]
[1763986375886,2.76375732,129.32,129.29,0.72]
[1763986378215,2.76375732,129.31,129.3,3.44]
[1763986380111,0.69,129.37,129.3,6.92375732]
[1763986380293,2.76375732,129.37,129.32,2.76375732]
[1763986380485,2.76375732,129.36,129.33,0.72]
[1763986380807,2.76375732,129.35,129.33,4.16]
[1763986380990,2.76375732,129.36,129.33,4.16]
[1763986381190,2.76375732,129.35,129.33,4.16]
[1763986381408,2.76375732,129.35,129.34,3.44]
[1763986381601,2.76375732,129.35,129.31,9.78882769]
[1763986381805,2.76375732,129.34,129.32,3.44]
[1763986381989,2.76375732,129.33,129.32,3.44]
[1763986383000,2.76375732,129.34,129.32,3.44]
[1763986383784,3.45375732,129.34,129.32,3.44]
[1763986384109,3.45375732,129.34,129.31,0.72]
[1763986384110,2.76375732,129.33,129.31,4.16]
[1763986385113,2.76375732,129.33,129.32,0.72]
[1763986385297,2.76375732,129.34,129.32,0.72]
[1763986387911,2.76375732,129.34,129.32,32.12]
[1763986388609,2.76375732,129.33,129.32,31.4]
[1763986389720,2.76375732,129.34,129.32,32.12]
[1763986394738,2.76375732,129.33,129.32,31.4]
[1763986394912,2.76375732,129.33,129.32,32.12]
[1763986395755,2.76375732,129.33,129.32,31.4]
[1763986395934,21.57471732,129.33,129.31,31.4]
[1763986396239,3.45375732,129.32,129.31,31.4]
[1763986397636,2.76375732,129.35,129.31,32.12]
[1763986397940,2.76375732,129.34,129.32,0.72]
[1763986398140,2.76375732,129.34,129.33,3.42]
[1763986399835,2.76375732,129.34,129.33,34.82]
[1763986400636,4.31480989,129.34,129.33,34.82]
[1763986404625,22.43576989,129.35,129.33,34.82]
[1763986404826,4.31480989,129.37,129.34,0.67]
[1763986405034,22.43576989,129.37,129.35,3.42]
[1763986405334,5.00480989,129.37,129.35,3.42]
[1763986406339,4.31480989,129.36,129.35,3.42]
[1763986408636,4.31480989,129.36,129.35,34.82]
[1763986409529,22.43576989,129.36,129.35,34.82]
[1763986411329,5.00480989,129.36,129.35,34.82]
[1763986412022,4.31480989,129.36,129.35,34.82]
[1763986413155,4.31480989,129.37,129.35,35.49]
[1763986413934,4.31480989,129.37,129.36,0.67]
[1763986414427,4.31480989,129.37,129.36,32.07]
[1763986415035,4.31480989,129.37,129.36,31.4]
[1763986416324,5.00480989,129.37,129.36,31.4]
[1763986416763,4.31480989,129.37,129.36,31.4]
[1763986417059,4.31480989,129.37,129.36,34.82]
[1763986417757,18.12096,129.39,129.36,34.82]
[1763986417971,5.00480989,129.37,129.36,34.82]
[1763986419634,4.31480989,129.37,129.36,34.82]
[1763986423569,18.12096,129.34,129.3,0.67]
[1763986423743,4.31480989,129.33,129.3,0.67]
[1763986423946,4.31480989,129.33,129.31,3.42]
[1763986424146,22.43576989,129.33,129.31,4.09]
[1763986425158,4.31480989,129.34,129.32,0.67]
[1763986425354,4.31480989,129.33,129.32,0.67]
[1763986425647,22.43576989,129.33,129.32,0.67]
[1763986426055,22.43576989,129.33,129.31,4.11]
[1763986426254,4.31480989,129.32,129.31,4.11]
[1763986426652,4.99480989,129.32,129.28,10.47882769]
[1763986426961,4.99480989,129.32,129.29,4.11]
[1763986426962,4.31480989,129.32,129.29,4.11]
[1763986427370,4.31480989,129.32,129.3,0.69]
[1763986429370,4.31480989,129.32,129.3,32.09]
[1763986429878,4.31480989,129.32,129.3,31.4]
[1763986430059,4.31480989,129.32,129.31,0.69]
[1763986432279,4.99480989,129.32,129.3,31.4]
[1763986432580,4.31480989,129.31,129.3,32.11]
[1763986432769,4.31480989,129.32,129.3,32.11]
[1763986433666,4.31480989,129.32,129.3,31.4]
[1763986433854,4.31480989,129.32,129.31,0.71]
[1763986437668,22.43576989,129.33,129.31,0.71]
[1763986438254,22.43576989,129.33,129.32,3.42]
[1763986438859,22.43576989,129.33,129.32,4.13]
[1763986439976,22.43576989,129.33,129.32,3.42]
[1763986441777,4.31480989,129.33,129.32,4.13]
[1763986442280,4.31480989,129.35,129.32,4.13]
[1763986442578,4.31480989,129.34,129.33,0.71]
[1763986444374,5.21219013,129.38,129.33,41.89882769]
[1763986444551,0.2,129.41,129.35,14.10363758]
[1763986444757,4.31480989,129.4,129.36,3.42]
[1763986444981,4.31480989,129.4,129.36,4.13]
[1763986445170,4.31480989,129.4,129.37,0.71]
[1763986445493,4.31480989,129.39,129.38,3.42]
[1763986445671,4.31480989,129.39,129.38,4.13]
[1763986446690,4.98480989,129.39,129.38,3.42]
[1763986447069,4.98480989,129.39,129.36,3.42]
[1763986447387,4.31480989,129.37,129.36,3.42]
[1763986454903,4.98480989,129.37,129.36,3.42]
[1763986455201,4.31480989,129.37,129.34,32.11]
[1763986455404,0.67,129.38,129.35,3.42]
[1763986455578,0.67,129.38,129.35,4.13]
[1763986455776,0.67,129.38,129.35,3.42]
[1763986456483,4.31480989,129.36,129.35,3.42]
[1763986457867,4.31480989,129.36,129.34,31.4]
[1763986457868,4.98480989,129.36,129.34,31.4]
[1763986458074,4.98480989,129.35,129.34,34.82]
[1763986459073,4.98480989,129.35,129.34,3.42]
[1763986459284,4.98480989,129.35,129.32,3.42]
[1763986459615,4.31480989,129.33,129.32,3.42]
[1763986459786,4.31480989,129.33,129.32,34.82]
[1763986461192,4.98480989,129.33,129.32,34.82]
[1763986461411,4.31480989,129.33,129.32,34.82]
[1763986461712,4.98480989,129.36,129.32,35.53]
[1763986461914,4.31480989,129.33,129.32,34.82]
[1763986462490,4.31480989,129.35,129.32,35.51]
[1763986462707,2.76123923,129.36,129.33,0.69]
[1763986462910,2.76123923,129.35,129.34,3.42]
[1763986463309,2.76123923,129.35,129.34,4.11]
[1763986466315,2.76123923,129.36,129.34,4.11]
[1763986466496,2.76123923,129.36,129.35,0.69]
[1763986469010,2.76123923,129.37,129.35,0.69]
[1763986469210,2.76123923,129.37,129.36,3.42]
[1763986470936,2.76123923,129.37,129.36,4.11]
[1763986471330,2.76123923,129.37,129.36,3.42]
[1763986473118,2.76123923,129.37,129.36,4.11]
[1763986474013,2.76123923,129.37,129.36,3.42]
[1763986474742,20.88219923,129.38,129.36,4.11]
[1763986474922,20.88219923,129.39,129.37,0.69]
[1763986475240,20.88219923,129.39,129.38,3.42]
[1763986476535,21.55219923,129.39,129.38,3.42]
[1763986476840,20.88219923,129.39,129.38,3.42]
[1763986477043,21.55219923,129.39,129.36,31.4]
[1763986477237,20.88219923,129.37,129.36,31.4]
[1763986478637,20.88219923,129.37,129.35,0.69]
[1763986478943,2.76123923,129.36,129.35,0.69]
[1763986482844,2.76123923,129.36,129.35,32.09]
[1763986485821,20.88219923,129.37,129.35,32.09]
[1763986486640,2.76123923,129.36,129.35,32.09]
[1763986493559,2.76123923,129.36,129.35,31.4]
[1763986493747,14.47619615,129.36,129.32,31.4]
[1763986493949,2.76123923,129.33,129.32,35.52]
[1763986494436,0.67,129.35,129.32,35.52]
[1763986494437,2.76123923,129.34,129.32,35.52]
[1763986494636,2.76123923,129.36,129.33,0.7]
[1763986494855,2.76123923,129.37,129.34,3.42]
[1763986495043,2.76123923,129.37,129.34,34.82]
[1763986495238,20.88219923,129.37,129.35,0.7]
[1763986495442,20.88219923,129.37,129.35,32.1]
[1763986495638,2.76123923,129.37,129.36,0.7]
[1763986495859,2.76123923,129.37,129.35,31.4]
[1763986496055,2.76123923,129.37,129.36,4.12]
[1763986500265,2.76123923,129.37,129.36,3.42]
[1763986500662,2.76123923,129.37,129.36,34.82]
[1763986500836,2.76123923,129.37,129.36,35.52]
[1763986501368,0.2,129.41,129.36,4.12]
[1763986501566,2.76123923,129.4,129.37,0.7]
[1763986501770,18.99096,129.41,129.38,3.42]
[1763986502068,2.76123923,129.39,129.38,3.42]
[1763986502557,3.43123923,129.39,129.38,3.42]
[1763986502751,2.76123923,129.4,129.38,4.12]
[1763986503270,2.76123923,129.39,129.38,3.42]
[1763986503456,3.43123923,129.39,129.37,3.42]
[1763986503655,2.76123923,129.38,129.37,3.42]
[1763986505652,2.76123923,129.38,129.37,4.12]
[1763986506173,2.76123923,129.38,129.37,3.42]
[1763986506363,2.76123923,129.39,129.37,3.42]
[1763986506562,2.76123923,129.39,129.37,4.12]
[1763986506965,2.76123923,129.39,129.38,0.7]
[1763986507276,20.88219923,129.4,129.38,0.7]
[1763986508183,2.76123923,129.39,129.38,31.4]
[1763986508575,2.76123923,129.39,129.38,32.1]
[1763986509078,2.76123923,129.39,129.38,31.4]
[1763986509457,2.76123923,129.39,129.38,32.1]
[1763986510667,2.76123923,129.4,129.38,32.1]
[1763986512285,0.87,129.41,129.38,32.1]
[1763986512458,2.76123923,129.4,129.38,32.1]
[1763986513186,2.96123923,129.41,129.39,0.7]
[1763986513364,0.2,129.41,129.4,3.42]
[1763986513776,2.96123923,129.41,129.4,4.12]
[1763986515771,2.96123923,129.41,129.39,31.4]
[1763986516104,18.12096,129.39,129.35,34.82]
[1763986516405,2.76123923,129.36,129.35,34.82]
[1763986516574,2.76123923,129.36,129.35,35.52]
[1763986516894,2.76123923,129.37,129.35,35.52]
[1763986517269,18.12096,129.39,129.36,0.7]
[1763986517270,20.88219923,129.39,129.36,0.7]
[1763986518270,2.76123923,129.39,129.36,0.7]
[1763986518664,2.76123923,129.39,129.37,3.42]
[1763986519184,3.43123923,129.38,129.37,3.42]
[1763986522596,23.10464851,129.38,129.35,34.82]
[1763986522894,4.31368851,129.36,129.35,34.82]
[1763986523095,4.31368851,129.36,129.35,35.51]
[1763986523482,4.31368851,129.36,129.35,34.82]
[1763986523871,4.31368851,129.36,129.35,35.51]
[1763986524595,18.12096,129.39,129.35,35.51]
[1763986524803,22.43464851,129.37,129.35,35.51]
[1763986526402,4.31368851,129.37,129.35,35.51]
[1763986526586,4.31368851,129.36,129.35,35.51]
[1763986528393,4.31368851,129.36,129.35,34.82]
[1763986528577,5.03368851,129.36,129.35,34.82]
[1763986528970,27.46833702,129.36,129.3,0.69]
[1763986529190,4.31368851,129.32,129.31,3.42]
[1763986529575,4.31368851,129.32,129.31,4.11]
[1763986530481,4.31368851,129.32,129.31,3.42]
[1763986531497,4.31368851,129.32,129.31,4.11]
[1763986532209,4.31368851,129.32,129.31,3.42]
[1763986532506,5.03368851,129.32,129.29,4.11]
[1763986532701,4.31368851,129.3,129.29,3.42]
[1763986532897,4.31368851,129.3,129.29,4.11]
[1763986534597,4.31368851,129.31,129.29,4.11]
[1763986535380,4.31368851,129.3,129.29,4.11]
[1763986535807,4.31368851,129.31,129.29,4.11]
[1763986536992,4.31368851,129.3,129.29,4.11]
[1763986537504,4.31368851,129.3,129.29,3.42]
[1763986537886,4.31368851,129.3,129.29,4.11]
[1763986538381,4.31368851,129.3,129.29,3.42]
[1763986538583,4.31368851,129.3,129.29,4.11]
[1763986539012,4.31368851,129.3,129.29,3.42]
[1763986539184,4.31368851,129.3,129.29,4.11]
[1763986539385,4.31368851,129.3,129.29,3.42]
[1763986540504,5.03368851,129.3,129.29,3.42]
[1763986540806,4.31368851,129.3,129.29,3.42]
[1763986542806,5.03368851,129.3,129.29,3.42]
[1763986543519,5.03368851,129.3,129.25,32.09]
[1763986543727,4.31368851,129.28,129.27,3.42]
[1763986544321,4.31368851,129.28,129.27,4.11]
[1763986545410,5.03368851,129.28,129.27,3.42]
[1763986545994,4.31368851,129.28,129.27,3.42]
[1763986547301,4.31368851,129.28,129.25,31.4]
[1763986547504,4.31368851,129.27,129.25,35.48]
[1763986547813,4.31368851,129.28,129.26,0.66]
[1763986548821,4.31368851,129.3,129.26,0.94432314]
[1763986549006,4.31368851,129.31,129.27,0.66]
[1763986549207,4.31368851,129.31,129.28,3.42]
[1763986549525,4.31368851,129.3,129.28,3.42]
[1763986549728,4.31368851,129.3,129.28,4.08]
[1763986551225,18.12096,129.33,129.29,0.66]
[1763986551426,0.67,129.35,129.29,4.97368851]
[1763986551726,4.31368851,129.37,129.32,4.31368851]
[1763986551903,4.31368851,129.37,129.33,7.73368851]
[1763986552106,4.31368851,129.37,129.34,0.66]
[1763986556423,4.31368851,129.36,129.34,0.66]
[1763986557522,4.31368851,129.35,129.33,34.82]
[1763986557837,4.31368851,129.35,129.33,35.52]
[1763986558830,4.31368851,129.36,129.33,34.82]
[1763986559126,0.66,129.37,129.33,35.52]
[1763986559127,4.31368851,129.35,129.33,35.52]
[1763986559428,4.31368851,129.35,129.33,34.82]
[1763986559929,4.31368851,129.35,129.33,35.52]
[1763986560114,18.12096,129.39,129.34,0.7]
[1763986560115,0.66,129.38,129.34,0.7]
[1763986560318,4.31368851,129.37,129.34,0.7]
[1763986560514,18.32096,129.41,129.34,5.01368851]
[1763986560719,4.31368851,129.38,129.34,5.01368851]
[1763986561033,4.97368851,129.39,129.35,0.7]
[1763986561204,4.31368851,129.39,129.36,3.42]
[1763986561405,4.31368851,129.38,129.36,3.42]
[1763986561631,4.31368851,129.38,129.36,4.12]
[1763986561930,4.31368851,129.37,129.36,3.42]
[1763986562129,0.66,129.39,129.36,3.42]
[1763986562338,4.97368851,129.4,129.37,0.7]
[1763986562539,4.31368851,129.4,129.37,0.7]
[1763986564010,4.51368851,129.41,129.37,36.41368851]
[1763986564208,0.2,129.41,129.38,4.31368851]
[1763986564408,0.2,129.41,129.39,3.42]
[1763986564604,4.51368851,129.41,129.39,4.12]
[1763986565115,0.2,129.41,129.4,0.7]
[1763986565312,0.2,129.41,129.4,5.01368851]
[1763986566447,0.2,129.41,129.39,35.52]
[1763986566749,0.2,129.41,129.4,0.7]
[1763986567261,0.2,129.41,129.39,35.52]
[1763986567431,0.2,129.41,129.39,34.82]
[1763986567642,0.2,129.41,129.4,0.7]
[1763986571248,5.17368851,129.41,129.39,34.82]
[1763986571446,4.51368851,129.41,129.39,34.82]
[1763986572253,5.17368851,129.41,129.39,34.82]
[1763986572631,4.51368851,129.41,129.39,34.82]
[1763986572828,0.2,129.41,129.39,35.52]
[1763986573029,0.2,129.41,129.4,0.7]
[1763986573345,0.2,129.41,129.4,5.01368851]
[1763986574346,0.2,129.41,129.4,0.7]
[1763986575821,4.51368851,129.41,129.39,34.82]
[1763986576147,5.17368851,129.41,129.39,34.82]
[1763986577630,4.31368851,129.4,129.39,34.82]
[1763986579557,0.86,129.41,129.39,34.82]
[1763986579558,0.2,129.41,129.39,35.52]
[1763986579745,0.2,129.41,129.4,0.7]
[1763986579934,0.2,129.41,129.39,34.82]
[1763986580256,0.2,129.41,129.39,35.52]
[1763986580957,4.51368851,129.41,129.39,34.82]
[1763986581454,5.17368851,129.41,129.39,34.82]
[1763986581638,4.51368851,129.41,129.39,35.52]
[1763986582547,0.2,129.41,129.39,35.52]
[1763986582776,4.51368851,129.41,129.39,35.52]
[1763986584644,0.2,129.41,129.39,35.52]
[1763986585154,0.2,129.41,129.4,3.44812605]
[1763986586243,0.2,129.41,129.4,52.79141372]
[1763986586555,0.2,129.41,129.4,45.06343845]
[1763986588033,0.2,129.41,129.4,53.56421124]
[1763986588646,0.2,129.41,129.4,56.66078565]
[1763986589668,0.2,129.41,129.4,158.76078565]
[1763986589862,0.2,129.41,129.4,157.98798813]
[1763986595002,0.2,129.41,129.4,169.02049233]
[1763986595297,0.24856581,129.45,129.44,10.2153124]
[1763986595505,0.24856581,129.45,129.44,47.09343845]
[1763986595692,0.24856581,129.45,129.44,47.78343845]
[1763986598068,0.24856581,129.45,129.44,55.50902559]
[1763986598269,0.16966813,129.46,129.45,3.18461076]
[1763986598468,0.16966813,129.46,129.45,14.43593748]
[1763986600509,0.16966813,129.46,129.45,22.16092782]
[1763986601004,0.16966813,129.46,129.45,40.28188782]
[1763986601568,0.16966813,129.46,129.45,70.98188782]
[1763986603292,0.16966813,129.46,129.45,74.0772641]
[1763986607601,1.08305481,129.49,129.47,40.39532879]
[1763986607825,1.08305481,129.49,129.47,46.17345484]
[1763986608229,0.2,129.49,129.47,49.95883112]
[1763986608406,0.2,129.49,129.48,2.75812605]
[1763986608607,0.35451714,129.49,129.48,2.75812605]
[1763986609000,0.35451714,129.49,129.48,6.54350233]
[1763986609418,0.35451714,129.49,129.48,5.85350233]
[1763986610206,0.35451714,129.49,129.48,3.09537628]
[1763986610409,0.35451714,129.49,129.48,5.85350233]
[1763986611438,1.07451714,129.49,129.48,5.85350233]
[1763986611602,0.35451714,129.49,129.48,5.85350233]
[1763986613430,0.35451714,129.49,129.48,35.63351872]
[1763986614606,0.35451714,129.49,129.48,36.29351872]
[1763986615833,0.35451714,129.49,129.48,46.50883112]
[1763986620321,0.36362003,129.5,129.49,39.64081165]
[1763986620522,0.36362003,129.5,129.49,46.4789377]
[1763986621554,0.36362003,129.5,129.49,49.57383498]
[1763986622345,0.36362003,129.5,129.49,57.29643904]
[1763986622726,0.36362003,129.5,129.49,58.06869944]
[1763986623043,0.36362003,129.5,129.49,50.34609538]
[1763986623227,0.36362003,129.5,129.49,49.57383498]
[1763986623433,0.36362003,129.5,129.49,151.67383498]
[1763986623634,0.36362003,129.5,129.49,159.39643904]
[1763986623848,0.36362003,129.5,129.49,151.67383498]
[1763986624351,0.36362003,129.5,129.49,152.44609538]
[1763986625345,0.36362003,129.5,129.49,151.67383498]
[1763986626450,0.36362003,129.5,129.49,151.01383498]
[1763986627450,0.36362003,129.5,129.49,151.67383498]
[1763986627854,0.36362003,129.5,129.49,159.39643904]
[1763986628156,0.2,129.5,129.49,159.39643904]
[1763986628351,0.2,129.51,129.5,39.14081165]
[1763986628531,0.34194003,129.51,129.5,28.72549925]
[1763986629436,1.02194003,129.51,129.5,28.72549925]
[1763986629830,0.34194003,129.51,129.5,28.72549925]
[1763986630039,0.34194003,129.51,129.5,31.4836253]
[1763986630540,0.34194003,129.51,129.5,28.72549925]
[1763986630727,0.34194003,129.51,129.5,31.4836253]
[1763986631048,0.34194003,129.51,129.5,28.72549925]
[1763986631353,0.34194003,129.51,129.5,31.4836253]
[1763986632246,0.34194003,129.51,129.5,28.72549925]
[1763986632559,0.34194003,129.51,129.5,31.4836253]
[1763986636457,0.34194003,129.51,129.5,32.1436253]
[1763986636843,0.34194003,129.51,129.5,31.4836253]
[1763986637341,1.02194003,129.51,129.5,28.72549925]
[1763986637540,1.02194003,129.51,129.49,3.42]
[1763986637541,3.78006608,129.51,129.49,3.42]
[1763986637734,0.68,129.5,129.49,3.42]
[1763986641845,0.68,129.5,129.49,6.52006608]
[1763986642096,0.34194003,129.51,129.49,6.52006608]
[1763986642294,1.02194003,129.51,129.49,9.27819213]
[1763986642474,1.02194003,129.51,129.49,6.17812605]
[1763986642662,1.02194003,129.51,129.5,3.09513676]
[1763986642864,0.34194003,129.51,129.5,3.09513676]
[1763986643059,0.34194003,129.51,129.5,5.85326281]
[1763986643376,0.34194003,129.51,129.5,31.82063601]
[1763986643577,1.00194003,129.51,129.5,31.82063601]
[1763986643997,0.34194003,129.51,129.5,31.82063601]
[1763986644283,1.00194003,129.51,129.5,31.82063601]
[1763986644963,0.34194003,129.51,129.5,47.03813124]
[1763986648190,0.2,129.51,129.5,47.03813124]
[1763986648700,0.3551123,129.51,129.5,47.03813124]
[1763986652582,0.3551123,129.51,129.5,47.81033201]
[1763986654002,0.3551123,129.51,129.5,55.53233973]
[1763986654784,0.1595401,129.52,129.51,43.24299448]
[1763986654983,0.1595401,129.52,129.51,47.36299448]
[1763986655612,0.8195401,129.52,129.51,42.03475139]
[1763986655911,0.8195401,129.52,129.51,45.45475139]
[1763986656206,0.8195401,129.52,129.51,35.23943899]
[1763986656712,0.8195401,129.52,129.51,6.51393974]
[1763986664221,5.12172293,129.52,129.51,6.51393974]
[1763986664398,5.12172293,129.52,129.51,3.42]
[1763986666220,0.8195401,129.52,129.51,3.42]
[1763986666910,0.8195401,129.52,129.51,32.14549925]
[1763986667098,5.12172293,129.52,129.51,32.14549925]
[1763986667301,0.8195401,129.52,129.51,32.14549925]
[1763986667612,5.12172293,129.52,129.51,32.14549925]
[1763986668121,0.66,129.52,129.51,32.14549925]
[1763986668615,0.81849608,129.52,129.51,32.14549925]
[1763986669502,0.15849608,129.52,129.51,32.83549925]
[1763986669699,0.15849608,129.52,129.51,32.14549925]
[1763986669904,0.15849608,129.52,129.51,36.60073767]
[1763986675015,0.84849608,129.52,129.51,36.60073767]
[1763986677433,0.15849608,129.52,129.51,36.60073767]
[1763986677929,0.15849608,129.52,129.51,37.30073767]
[1763986678111,0.15849608,129.52,129.51,36.60073767]
[1763986680237,0.15849608,129.52,129.51,37.30073767]
[1763986680414,0.15849608,129.52,129.51,36.60073767]
[1763986680737,0.15849608,129.52,129.51,59.53964437]
[1763986681036,0.15849608,129.52,129.51,60.31178551]
[1763986683021,0.15849608,129.52,129.51,52.59037404]
[1763986683309,0.15849608,129.52,129.51,48.28819121]
[1763986683504,0.15849608,129.52,129.51,48.3982329]
[1763986683723,0.15849608,129.52,129.51,51.8182329]
[1763986684133,0.15849608,129.52,129.51,36.60073767]
[1763986684334,0.84849608,129.52,129.51,36.60073767]
[1763986685431,0.84849608,129.52,129.51,7.87523842]
[1763986685739,0.15849608,129.52,129.51,7.87523842]
[1763986686328,0.15849608,129.52,129.51,12.17742125]
[1763986686535,0.15849608,129.52,129.51,12.87742125]
[1763986687632,0.15849608,129.52,129.51,8.57523842]
[1763986687842,0.15849608,129.52,129.51,12.87742125]
[1763986688138,0.89,129.54,129.51,12.87742125]
[1763986688348,0.89,129.54,129.51,41.6029205]
[1763986688540,0.15027896,129.52,129.51,37.30073767]
[1763986688744,0.15027896,129.52,129.51,41.6029205]
[1763986690416,0.15027896,129.52,129.51,51.8182329]
[1763986692130,0.15027896,129.52,129.51,52.59037404]
[1763986693150,0.15027896,129.52,129.51,47.51605007]
[1763986693341,0.15027896,129.52,129.51,51.8182329]
[1763986693929,0.84027896,129.52,129.51,33.18073767]
[1763986694255,0.84027896,129.52,129.51,36.60073767]
[1763986694435,0.15027896,129.52,129.51,36.60073767]
[1763986694636,0.15027896,129.52,129.51,51.8182329]
[1763986694842,0.15027896,129.52,129.51,60.31178551]
[1763986695053,0.15027896,129.52,129.51,51.8182329]
[1763986700670,0.15027896,129.52,129.51,59.53964437]
[1763986701168,0.84027896,129.52,129.51,33.18073767]
[1763986701470,0.84027896,129.52,129.51,36.60073767]
[1763986701846,0.84027896,129.52,129.51,32.14549925]
[1763986702444,0.84027896,129.52,129.46,37.43130061]
[1763986702445,5.14246179,129.52,129.44,29.38549925]
[1763986702644,4.30218283,129.5,129.46,4.30218283]
[1763986702867,4.95218283,129.51,129.46,9.61200861]
[1763986703467,4.95218283,129.5,129.46,9.61200861]
[1763986703970,0.65,129.49,129.46,9.61200861]
[1763986704168,0.65,129.49,129.46,5.30982578]
[1763986704375,0.65,129.49,129.45,14.75101052]
[1763986704669,0.65,129.49,129.46,7.72218283]
[1763986704856,0.65,129.5,129.47,9.78882769]
[1763986705056,0.65,129.5,129.48,3.42]
[1763986705658,4.95218283,129.5,129.48,3.42]
[1763986705866,0.65,129.49,129.48,3.42]
[1763986706057,4.95218283,129.5,129.48,3.42]
[1763986706369,0.65,129.49,129.48,3.42]
[1763986706569,0.65,129.5,129.48,3.42]
[1763986706768,2.75425776,129.51,129.48,4.08]
[1763986706971,3.40425776,129.5,129.48,3.42]
[1763986707273,2.75425776,129.49,129.48,3.42]
[1763986707472,3.40425776,129.49,129.48,3.42]
[1763986708546,3.54789526,129.49,129.48,3.42]
[1763986710973,0.1436375,129.49,129.48,13.86882769]
[1763986711777,0.1436375,129.49,129.48,13.20882769]
[1763986711946,0.1436375,129.49,129.48,13.86882769]
[1763986713581,0.1436375,129.49,129.48,13.20882769]
[1763986713753,0.1436375,129.49,129.48,13.86882769]
[1763986714282,0.7936375,129.49,129.48,3.42]
[1763986714484,0.7936375,129.49,129.48,32.14549925]
[1763986714867,0.1436375,129.49,129.48,32.14549925]
[1763986716175,0.1436375,129.49,129.48,32.80549925]
[1763986716382,0.1436375,129.49,129.48,32.14549925]
[1763986720485,0.1436375,129.49,129.48,42.59432694]
[1763986720691,0.1436375,129.49,129.48,45.3485847]
[1763986721384,0.1436375,129.49,129.48,41.93432694]
[1763986722063,3.54789526,129.49,129.44,0.66]
[1763986722259,2.75425776,129.48,129.45,13.20882769]
[1763986722586,3.40425776,129.48,129.45,13.20882769]
[1763986722775,0.65,129.48,129.45,13.20882769]